bitfinex/quotes_SOLUSD_20240713
["timestamp","ask_amount","ask_price","bid_price","bid_amount"]
[1720831711990,10.0,139.52,139.45,6.24586799]
[1720831712188,11.55,139.49,139.45,6.24586799]
[1720831712394,10.0,139.52,139.45,6.24586799]
[1720831712395,11.55,139.46,139.45,6.24586799]
[1720831712601,11.55,139.46,139.43,6.24586799]
[1720831712773,20.0,139.45,139.43,6.24586799]
[1720831713090,31.55,139.45,139.43,6.24586799]
[1720831713475,11.55,139.45,139.43,6.24586799]
[1720831714393,10.0,139.5,139.43,11.26616799]
[1720831714585,11.55,139.46,139.43,6.24586799]
[1720831714791,20.0,139.45,139.43,6.24586799]
[1720831717401,31.55,139.45,139.43,6.24586799]
[1720831720705,11.55,139.44,139.43,6.24586799]
[1720831722681,20.0,139.45,139.43,6.24586799]
[1720831723088,11.55,139.45,139.43,6.24586799]
[1720831723614,20.0,139.47,139.43,6.24586799]
[1720831723916,11.55,139.45,139.43,6.24586799]
[1720831724294,20.0,139.47,139.45,6.24586799]
[1720831724508,11.55,139.46,139.45,6.24586799]
[1720831724802,31.55,139.46,139.45,6.24586799]
[1720831725989,20.0,139.46,139.45,6.24586799]
[1720831726196,31.55,139.46,139.45,6.24586799]
[1720831726392,76.55,139.46,139.45,6.24586799]
[1720831727004,31.55,139.46,139.45,6.24586799]
[1720831727793,76.55,139.46,139.45,6.24586799]
[1720831727995,31.55,139.46,139.45,6.24586799]
[1720831735597,10.0,139.44,139.4,6.24586799]
[1720831735805,11.55,139.41,139.4,6.24586799]
[1720831736104,11.55,139.41,139.36,27.35586799]
[1720831736313,11.55,139.39,139.36,27.35586799]
[1720831736699,11.55,139.39,139.38,6.24586799]
[1720831739924,20.0,139.41,139.38,6.24586799]
[1720831740216,20.0,139.42,139.4,6.24586799]
[1720831740823,11.55,139.41,139.4,6.24586799]
[1720831741403,31.55,139.41,139.4,6.24586799]
[1720831742204,20.0,139.41,139.4,6.24586799]
[1720831742419,20.0,139.41,139.4,11.26736799]
[1720831742718,20.0,139.41,139.4,6.24586799]
[1720831743128,31.55,139.41,139.4,6.24586799]
[1720831743800,31.55,139.41,139.38,6.24586799]
[1720831743997,11.55,139.4,139.38,6.24586799]
[1720831744200,11.55,139.4,139.38,11.26806799]
[1720831747025,10.0,139.42,139.38,6.24586799]
[1720831747329,11.55,139.39,139.36,5.0227]
[1720831747531,11.55,139.39,139.37,6.24586799]
[1720831747909,11.55,139.39,139.37,5.0225]
[1720831748228,11.55,139.39,139.37,11.26836799]
[1720831748409,11.55,139.39,139.38,5.0222]
[1720831748605,10.0,139.42,139.39,6.24586799]
[1720831748809,11.55,139.4,139.39,6.24586799]
[1720831749011,11.55,139.4,139.37,5.0224]
[1720831749012,76.55,139.4,139.37,11.26826799]
[1720831749322,11.55,139.39,139.37,11.26826799]
[1720831751025,10.0,139.42,139.39,6.24586799]
[1720831751026,11.55,139.4,139.39,6.24586799]
[1720831751225,31.55,139.4,139.39,6.24586799]
[1720831751426,76.55,139.4,139.39,6.24586799]
[1720831751624,76.55,139.4,139.38,6.24586799]
[1720831751928,11.55,139.39,139.38,6.24586799]
[1720831752325,65.0,139.4,139.38,6.24586799]
[1720831752632,11.55,139.39,139.38,6.24586799]
[1720831753130,10.0,139.37,139.36,6.24586799]
[1720831753337,10.0,139.35,139.3,11.27086799]
[1720831753506,11.55,139.32,139.3,6.24586799]
[1720831755705,11.55,139.33,139.32,6.24586799]
[1720831755919,20.0,139.33,139.32,6.24586799]
[1720831756932,20.0,139.33,139.32,11.27026799]
[1720831757129,20.0,139.33,139.32,6.24586799]
[1720831760515,10.0,139.37,139.32,11.27016799]
[1720831760729,11.55,139.35,139.34,6.24586799]
[1720831760933,31.55,139.35,139.32,6.24586799]
[1720831761114,20.0,139.34,139.32,6.24586799]
[1720831761636,12.82597219,139.39,139.34,6.24586799]
[1720831761811,10.0,139.41,139.35,5.0232]
[1720831762137,11.55,139.38,139.34,6.24586799]
[1720831762318,11.55,139.37,139.34,6.24586799]
[1720831763333,11.55,139.36,139.34,6.24586799]
[1720831764044,36.5733,139.35,139.34,6.24586799]
[1720831765057,5.0238,139.34,139.32,6.24586799]
[1720831765349,16.5738,139.34,139.32,6.24586799]
[1720831765740,5.024,139.33,139.32,6.24586799]
[1720831765912,81.574,139.33,139.3,6.24586799]
[1720831766117,11.55,139.32,139.3,6.24586799]
[1720831767233,20.0,139.33,139.3,6.24586799]
[1720831767553,20.0,139.33,139.32,6.24586799]
[1720831769651,20.0,139.33,139.32,11.27026799]
[1720831769855,5.0233,139.35,139.34,6.24586799]
[1720831770052,25.0234,139.35,139.32,6.24586799]
[1720831770361,25.0236,139.34,139.32,6.24586799]
[1720831770580,20.0,139.34,139.32,6.24586799]
[1720831770742,20.0,139.34,139.32,11.27006799]
[1720831770944,11.55,139.35,139.32,6.24586799]
[1720831771245,20.0,139.34,139.32,6.24586799]
[1720831772461,25.0238,139.34,139.32,6.24586799]
[1720831774149,5.024,139.33,139.32,6.24586799]
[1720831774355,25.024,139.33,139.32,6.24586799]
[1720831775146,36.574,139.33,139.32,6.24586799]
[1720831775776,25.024,139.33,139.32,6.24586799]
[1720831775948,20.0,139.33,139.32,6.24586799]
[1720831776142,25.024,139.33,139.32,6.24586799]
[1720831776346,36.574,139.33,139.32,6.24586799]
[1720831776960,31.55,139.33,139.32,6.24586799]
[1720831777166,20.0,139.33,139.32,6.24586799]
[1720831778654,20.0,139.33,139.32,11.27026799]
[1720831779058,20.0,139.33,139.32,6.24586799]
[1720831784877,25.024,139.33,139.32,6.24586799]
[1720831785178,5.024,139.33,139.32,6.24586799]
[1720831786075,25.024,139.33,139.32,6.24586799]
[1720831788380,5.024,139.33,139.32,6.24586799]
[1720831788683,25.024,139.33,139.32,6.24586799]
[1720831792357,20.0,139.33,139.32,6.24586799]
[1720831793154,5.0238,139.34,139.32,6.24586799]
[1720831793363,5.0232,139.36,139.35,6.24586799]
[1720831793583,5.0234,139.35,139.33,6.24586799]
[1720831793782,20.0,139.34,139.33,6.24586799]
[1720831795769,25.0236,139.34,139.33,6.24586799]
[1720831805874,36.5736,139.34,139.33,6.24586799]
[1720831811578,25.0236,139.34,139.33,6.24586799]
[1720831821807,36.5736,139.34,139.33,6.24586799]
[1720831827626,81.5736,139.34,139.33,6.24586799]
[1720831832935,25.0236,139.34,139.33,6.24586799]
[1720831845352,81.5736,139.34,139.33,6.24586799]
[1720831845547,86.55,139.34,139.29,6.24586799]
[1720831845758,11.55,139.32,139.29,6.24586799]
[1720831845931,20.0,139.31,139.29,6.24586799]
[1720831847230,5.0251,139.3,139.29,6.24586799]
[1720831857241,5.0258,139.28,139.27,6.24586799]
[1720831857655,25.0258,139.28,139.27,6.24586799]
[1720831859255,5.0265,139.26,139.25,6.24586799]
[1720831860469,16.5765,139.26,139.25,6.24586799]
[1720831861869,5.0265,139.26,139.25,6.24586799]
[1720831862764,5.0263,139.27,139.25,6.24586799]
[1720831862953,5.0265,139.26,139.25,6.24586799]
[1720831868456,5.0263,139.27,139.25,6.24586799]
[1720831868766,5.0256,139.29,139.27,6.24586799]
[1720831869069,5.0256,139.29,139.28,11.55]
[1720831870263,25.0256,139.29,139.28,11.55]
[1720831870763,5.0252,139.3,139.29,6.24586799]
[1720831871066,5.0248,139.31,139.29,17.79586799]
[1720831871243,5.0248,139.31,139.3,11.55]
[1720831871448,5.0248,139.31,139.29,6.24586799]
[1720831871654,5.0251,139.3,139.29,6.24586799]
[1720831871859,5.0251,139.3,139.29,17.79586799]
[1720831874973,5.0248,139.31,139.29,17.79586799]
[1720831875372,5.0248,139.31,139.3,11.55]
[1720831882473,5.0245,139.32,139.31,6.24586799]
[1720831882667,25.0245,139.32,139.31,17.79586799]
[1720831885457,25.0245,139.32,139.31,6.24586799]
[1720831885678,25.0245,139.32,139.31,17.79586799]
[1720831894405,25.0245,139.32,139.31,6.24586799]
[1720831898581,25.0245,139.32,139.31,17.79586799]
[1720831901178,20.0,139.32,139.31,17.79586799]
[1720831901404,5.0241,139.33,139.31,17.79586799]
[1720831901701,5.0241,139.33,139.32,11.55]
[1720831901906,25.0241,139.33,139.32,11.55]
[1720831906397,5.0241,139.33,139.32,11.55]
[1720831906597,5.0238,139.34,139.33,6.24586799]
[1720831906816,5.0238,139.34,139.33,17.79586799]
[1720831907300,25.0238,139.34,139.33,17.79586799]
[1720831913899,5.0234,139.35,139.33,17.79586799]
[1720831914102,5.023,139.36,139.34,12.09603758]
[1720831914280,5.023,139.36,139.35,17.79586799]
[1720831916320,5.0227,139.37,139.35,17.79586799]
[1720831916622,18.13546868,139.41,139.3,6.1023]
[1720831916623,5.0214,139.41,139.4,6.24586799]
[1720831916930,5.0214,139.41,139.4,17.79586799]
[1720831918011,25.0214,139.41,139.4,17.79586799]
[1720831919113,25.0214,139.41,139.4,6.24586799]
[1720831928318,25.0214,139.41,139.38,6.24586799]
[1720831928319,54.103,139.41,139.38,6.24586799]
[1720831928501,5.0218,139.39,139.38,6.24586799]
[1720831928705,25.0218,139.39,139.38,6.24586799]
[1720831929118,5.0226,139.37,139.36,6.24586799]
[1720831929509,5.0223,139.38,139.36,6.24586799]
[1720831929730,5.0223,139.38,139.36,17.79586799]
[1720831932604,5.0223,139.38,139.36,6.24586799]
[1720831932803,5.0226,139.37,139.36,6.24586799]
[1720831933403,5.0223,139.38,139.36,6.24586799]
[1720831933627,20.0,139.39,139.36,17.79586799]
[1720831933628,25.022,139.39,139.36,17.79586799]
[1720831933802,25.022,139.39,139.38,6.24586799]
[1720831948043,25.022,139.39,139.36,11.55]
[1720831948250,20.0,139.38,139.36,11.55]
[1720831949747,20.0,139.38,139.37,6.24586799]
[1720831950443,20.0,139.38,139.37,17.79586799]
[1720831952342,47.14341519,139.45,139.39,6.24586799]
[1720831952546,47.14341519,139.45,139.41,6.24586799]
[1720831952547,11.55,139.44,139.41,6.24586799]
[1720831952840,58.69341519,139.45,139.41,6.24586799]
[1720831953352,5.0209,139.42,139.41,6.24586799]
[1720831954035,25.0209,139.42,139.41,6.24586799]
[1720831955655,70.0209,139.42,139.41,6.24586799]
[1720831956655,25.0209,139.42,139.41,6.24586799]
[1720831963844,20.0,139.42,139.41,6.24586799]
[1720831964061,25.0208,139.42,139.41,6.24586799]
[1720831975463,70.0208,139.42,139.41,6.24586799]
[1720831975661,5.0215,139.4,139.39,6.24586799]
[1720831979693,65.0,139.42,139.39,6.24586799]
[1720831979694,5.0212,139.41,139.39,6.24586799]
[1720831981680,76.55,139.4,139.35,6.24586799]
[1720831982003,5.0226,139.37,139.35,6.24586799]
[1720831982714,20.0,139.36,139.35,6.24586799]
[1720831984589,45.0,139.4,139.37,6.24586799]
[1720831984790,16.5948,139.43,139.4,6.24586799]
[1720831984999,18.1448,139.43,139.38,17.79586799]
[1720831985175,5.0209,139.42,139.39,11.55]
[1720831985379,5.0205,139.43,139.39,16.5718]
[1720831985807,5.0205,139.43,139.41,6.24586799]
[1720831986405,5.0208,139.42,139.41,6.24586799]
[1720831986607,25.0208,139.42,139.41,6.24586799]
[1720831986994,20.0,139.42,139.41,6.24586799]
[1720831988296,25.0208,139.42,139.41,6.24586799]
[1720831989596,20.0,139.42,139.41,6.24586799]
[1720831991201,25.0208,139.42,139.41,6.24586799]
[1720831995018,21.4193545,139.46,139.41,6.24586799]
[1720831995231,5.0203,139.44,139.43,6.24586799]
[1720831996518,25.0203,139.44,139.43,6.24586799]
[1720832023537,25.0203,139.44,139.43,17.79586799]
[1720832033649,25.0203,139.44,139.43,6.24586799]
[1720832041038,36.5703,139.44,139.43,6.24586799]
[1720832042654,25.0203,139.44,139.43,6.24586799]
[1720832047564,20.0,139.44,139.43,6.24586799]
[1720832048157,25.02,139.44,139.43,6.24586799]
[1720832048450,20.0,139.44,139.43,6.24586799]
[1720832051652,5.0198,139.45,139.43,6.24586799]
[1720832052175,20.0,139.44,139.43,6.24586799]
[1720832072588,25.02,139.44,139.43,6.24586799]
[1720832074680,25.02,139.44,139.41,6.24586799]
[1720832074681,5.0208,139.43,139.41,6.24586799]
[1720832077082,5.0208,139.42,139.41,6.24586799]
[1720832077588,25.0208,139.42,139.41,6.24586799]
[1720832080085,20.0,139.42,139.41,6.24586799]
[1720832083294,25.0208,139.42,139.41,6.24586799]
[1720832085589,5.0204,139.43,139.41,6.24586799]
[1720832085790,20.0,139.42,139.41,6.24586799]
[1720832088394,5.0202,139.44,139.43,6.24586799]
[1720832088593,25.0202,139.44,139.43,6.24586799]
[1720832097801,27.83966188,139.44,139.43,6.24586799]
[1720832098588,22.81946188,139.44,139.41,6.24586799]
[1720832098794,25.0206,139.43,139.41,6.24586799]
[1720832100700,5.0208,139.42,139.41,6.24586799]
[1720832101212,25.0205,139.43,139.41,6.24586799]
[1720832101515,20.0,139.42,139.41,6.24586799]
[1720832107921,20.0,139.42,139.41,22.81696799]
[1720832109216,20.0,139.42,139.41,17.79586799]
[1720832109614,20.0,139.42,139.41,6.24586799]
[1720832116825,25.0208,139.42,139.41,6.24586799]
[1720832117526,5.0208,139.42,139.41,6.24586799]
[1720832117732,25.0208,139.42,139.41,6.24586799]
[1720832118635,20.0,139.42,139.41,6.24586799]
[1720832119427,20.0,139.42,139.41,17.79586799]
[1720832121339,30.51036176,139.46,139.41,17.79586799]
[1720832121340,5.0202,139.44,139.41,17.79586799]
[1720832121533,5.0202,139.44,139.43,6.24586799]
[1720832121734,25.0202,139.44,139.43,6.24586799]
[1720832131556,5.0202,139.44,139.43,6.24586799]
[1720832132827,25.0202,139.44,139.43,6.24586799]
[1720832149363,10.0,139.41,139.37,6.24586799]
[1720832149552,11.55,139.38,139.32,6.24586799]
[1720832149865,11.55,139.38,139.31,28.1246]
[1720832149866,11.55,139.34,139.31,11.55]
[1720832150064,5.0245,139.32,139.3,6.24586799]
[1720832150556,5.0247,139.31,139.3,6.24586799]
[1720832150759,5.0245,139.32,139.3,6.24586799]
[1720832151148,5.0247,139.31,139.3,6.24586799]
[1720832152045,5.0252,139.3,139.28,6.24586799]
[1720832152650,25.0248,139.31,139.28,6.24586799]
[1720832152855,20.0,139.3,139.28,6.24586799]
[1720832155563,20.0,139.3,139.28,11.27156799]
[1720832155756,2.91410024,139.35,139.29,11.55]
[1720832156059,56.55,139.35,139.29,11.55]
[1720832156641,5.0238,139.34,139.3,5.0251]
[1720832156871,5.0238,139.34,139.3,11.27096799]
[1720832157067,20.0,139.33,139.3,11.27096799]
[1720832157566,25.024,139.33,139.3,6.24586799]
[1720832158372,5.0244,139.32,139.3,6.24586799]
[1720832160281,10.0,139.31,139.25,6.24586799]
[1720832160566,16.5757,139.29,139.25,11.27266799]
[1720832160766,20.0,139.28,139.25,11.27266799]
[1720832161265,16.5757,139.29,139.25,11.27266799]
[1720832161447,45.0,139.3,139.27,6.24586799]
[1720832162258,50.0253,139.3,139.27,6.24586799]
[1720832162663,61.5753,139.3,139.27,6.24586799]
[1720832163754,50.0253,139.3,139.27,6.24586799]
[1720832165670,61.5753,139.3,139.27,6.24586799]
[1720832167760,50.0253,139.3,139.29,6.24586799]
[1720832167960,70.0253,139.3,139.29,6.24586799]
[1720832169073,10.0,139.35,139.31,6.24586799]
[1720832169370,5.0243,139.33,139.31,6.24586799]
[1720832169560,10.0,139.33,139.31,6.24586799]
[1720832169754,5.0253,139.3,139.27,6.24586799]
[1720832169958,15.0249,139.31,139.27,22.82196799]
[1720832170170,5.0249,139.31,139.29,6.24586799]
[1720832171067,5.0251,139.3,139.29,6.24586799]
[1720832171552,70.0251,139.3,139.29,6.24586799]
[1720832173150,65.0,139.3,139.29,6.24586799]
[1720832174955,70.0251,139.3,139.29,6.24586799]
[1720832175155,65.0,139.3,139.29,6.24586799]
[1720832176561,70.0251,139.3,139.29,6.24586799]
[1720832177075,68.58934982,139.3,139.29,6.24586799]
[1720832178176,63.56424982,139.3,139.29,6.24586799]
[1720832179964,18.56424982,139.3,139.29,6.24586799]
[1720832182383,23.58944982,139.3,139.27,6.24586799]
[1720832182580,23.58944982,139.3,139.27,17.79586799]
[1720832182769,23.58944982,139.3,139.27,6.24586799]
[1720832182966,23.58944982,139.3,139.29,6.24586799]
[1720832183168,68.58944982,139.3,139.29,6.24586799]
[1720832183385,18.56424982,139.3,139.29,6.24586799]
[1720832184261,18.56424982,139.3,139.27,6.24586799]
[1720832184474,23.58934982,139.3,139.27,6.24586799]
[1720832184989,5.0255,139.29,139.27,6.24586799]
[1720832185289,23.58944982,139.3,139.27,6.24586799]
[1720832185884,23.58944982,139.3,139.29,6.24586799]
[1720832186068,68.58944982,139.3,139.29,6.24586799]
[1720832189399,23.58944982,139.3,139.29,6.24586799]
[1720832190783,68.58944982,139.3,139.29,6.24586799]
[1720832194300,68.58944982,139.3,139.27,6.24586799]
[1720832194301,63.56424982,139.3,139.27,6.24586799]
[1720832194510,5.0258,139.28,139.27,6.24586799]
[1720832194814,70.0258,139.28,139.27,6.24586799]
[1720832195500,5.0263,139.27,139.23,31.6883]
[1720832195811,25.0263,139.27,139.23,31.6883]
[1720832196398,25.0263,139.27,139.26,6.24586799]
[1720832196598,65.0,139.27,139.26,6.24586799]
[1720832196796,21.55,139.29,139.26,6.24586799]
[1720832196797,5.0255,139.29,139.26,6.24586799]
[1720832197008,5.0252,139.3,139.28,6.24586799]
[1720832197203,20.52937483,139.32,139.28,6.24586799]
[1720832197204,20.0,139.29,139.28,6.24586799]
[1720832201206,5.0246,139.32,139.31,6.24586799]
[1720832201407,70.0246,139.32,139.31,6.24586799]
[1720832206798,28.2271,139.37,139.34,6.24586799]
[1720832206993,5.0233,139.35,139.34,6.24586799]
[1720832207322,5.0233,139.35,139.33,11.55]
[1720832207508,5.0233,139.35,139.34,6.24586799]
[1720832207913,5.0233,139.35,139.34,17.79586799]
[1720832209001,25.0233,139.35,139.34,17.79586799]
[1720832212829,5.0233,139.35,139.34,17.79586799]
[1720832213005,22.5546,139.4,139.36,6.24586799]
[1720832213204,22.5546,139.4,139.36,17.79586799]
[1720832213415,25.36477806,139.4,139.36,17.79586799]
[1720832213616,5.0226,139.37,139.36,11.55]
[1720832214014,5.0229,139.36,139.35,17.79586799]
[1720832217801,5.0226,139.37,139.35,17.79586799]
[1720832218636,5.0223,139.38,139.37,6.24586799]
[1720832218821,25.0223,139.38,139.37,6.24586799]
[1720832219629,70.0223,139.38,139.37,6.24586799]
[1720832221213,10.0,139.37,139.35,6.24586799]
[1720832221525,5.0233,139.35,139.32,11.55]
[1720832222328,5.0233,139.35,139.31,5.0245]
[1720832222515,5.0233,139.35,139.32,11.55]
[1720832223522,50.023,139.36,139.33,11.55]
[1720832223829,20.0,139.35,139.33,16.574]
[1720832224231,20.0,139.35,139.34,11.55]
[1720832228238,20.0,139.35,139.32,5.0242]
[1720832228439,20.0,139.35,139.34,11.55]
[1720832228648,20.0,139.35,139.33,11.55]
[1720832228940,25.0233,139.35,139.33,11.55]
[1720832229247,5.024,139.33,139.29,21.5476]
[1720832229449,5.024,139.33,139.31,11.55]
[1720832229828,5.0237,139.34,139.32,11.55]
[1720832230147,20.0,139.33,139.32,11.55]
[1720832232158,50.0231,139.36,139.32,11.55]
[1720832232453,20.0,139.35,139.33,5.0237]
[1720832232662,20.0,139.36,139.34,11.55]
[1720832232829,20.0,139.36,139.35,11.55]
[1720832234357,25.0229,139.36,139.35,11.55]
[1720832234544,25.0229,139.36,139.34,11.55]
[1720832234545,5.0233,139.35,139.34,11.55]
[1720832234726,25.0233,139.35,139.34,11.55]
[1720832234930,70.0233,139.35,139.34,11.55]
[1720832235233,25.0233,139.35,139.34,11.55]
[1720832235737,20.0,139.35,139.34,11.55]
[1720832238753,25.0233,139.35,139.34,11.55]
[1720832240248,25.0233,139.35,139.31,5.0246]
[1720832240443,25.0233,139.35,139.34,11.55]
[1720832240632,70.0233,139.35,139.34,11.55]
[1720832241039,70.0233,139.35,139.33,11.55]
[1720832241447,5.0236,139.34,139.33,11.55]
[1720832242455,70.0234,139.35,139.33,11.55]
[1720832243456,70.0234,139.35,139.34,11.55]
[1720832243651,50.0234,139.35,139.34,11.55]
[1720832243838,65.0,139.35,139.34,11.55]
[1720832244039,5.0227,139.37,139.33,5.0239]
[1720832244248,20.0,139.36,139.35,11.55]
[1720832248967,25.0229,139.36,139.35,11.55]
[1720832250851,5.0229,139.36,139.35,11.55]
[1720832252251,25.0229,139.36,139.35,11.55]
[1720832254371,20.0,139.36,139.35,11.55]
[1720832255054,7.49838698,139.4,139.35,11.55]
[1720832255391,5.0211,139.42,139.39,11.55]
[1720832255559,16.0781,139.43,139.39,11.55]
[1720832255560,5.0211,139.41,139.39,11.55]
[1720832255760,5.0211,139.41,139.38,11.55]
[1720832255761,5.0215,139.4,139.38,11.55]
[1720832256162,5.0218,139.39,139.38,11.55]
[1720832256561,20.0,139.39,139.34,21.4066]
[1720832256787,5.0223,139.38,139.37,11.55]
[1720832257463,5.022,139.39,139.37,11.55]
[1720832258662,25.0216,139.4,139.37,11.55]
[1720832258868,45.0,139.39,139.37,11.55]
[1720832261391,50.0219,139.39,139.37,11.55]
[1720832262068,5.0223,139.38,139.37,11.55]
[1720832264071,50.022,139.39,139.37,11.55]
[1720832267391,20.0,139.38,139.3,22.7576]
[1720832267572,5.0228,139.37,139.35,11.55]
[1720832267766,5.0228,139.37,139.3,22.7576]
[1720832268079,5.0228,139.37,139.34,11.55]
[1720832269475,20.0,139.38,139.32,5.0243]
[1720832269669,45.0,139.37,139.32,5.0243]
[1720832269874,20.0,139.36,139.32,16.5743]
[1720832270771,25.023,139.36,139.32,16.5743]
[1720832270974,5.0233,139.35,139.32,16.5743]
[1720832271180,50.0233,139.35,139.32,16.5743]
[1720832271570,50.0233,139.35,139.32,5.0243]
[1720832271773,50.0233,139.35,139.32,16.5743]
[1720832271971,45.0,139.35,139.32,16.5743]
[1720832272171,45.0,139.35,139.33,11.55]
[1720832272877,37.8105,139.39,139.35,5.0232]
[1720832273184,65.0,139.38,139.36,11.55]
[1720832273773,70.0222,139.38,139.36,11.55]
[1720832273974,5.0227,139.37,139.35,11.55]
[1720832274180,20.0,139.36,139.35,11.55]
[1720832274382,20.0,139.36,139.34,11.55]
[1720832274982,5.0227,139.37,139.34,11.55]
[1720832276497,20.0,139.36,139.34,11.55]
[1720832278277,5.0227,139.37,139.34,11.55]
[1720832278478,45.0,139.38,139.34,11.55]
[1720832278696,20.0,139.37,139.36,11.55]
[1720832280004,5.0223,139.38,139.36,11.55]
[1720832280005,5.0219,139.39,139.36,16.5729]
[1720832280187,5.0219,139.39,139.37,11.55]
[1720832280794,5.0222,139.38,139.37,11.55]
[1720832281278,25.0222,139.38,139.37,11.55]
[1720832282401,2.86411242,139.41,139.37,11.55]
[1720832282598,5.0214,139.41,139.39,11.55]
[1720832282791,5.0209,139.42,139.4,11.55]
[1720832283095,5.0211,139.41,139.4,11.55]
[1720832283899,25.0211,139.41,139.4,11.55]
[1720832284280,5.0216,139.4,139.39,11.55]
[1720832284597,25.0216,139.4,139.39,11.55]
[1720832285299,5.0212,139.41,139.39,11.55]
[1720832285491,20.0,139.4,139.39,11.55]
[1720832288985,20.0,139.4,139.37,11.55]
[1720832288986,5.0219,139.39,139.37,11.55]
[1720832289592,70.0216,139.4,139.38,11.55]
[1720832289800,25.0216,139.4,139.38,11.55]
[1720832290100,20.0,139.4,139.39,11.55]
[1720832291106,25.0215,139.4,139.39,11.55]
[1720832291292,5.022,139.39,139.38,11.55]
[1720832291492,50.022,139.39,139.38,11.55]
[1720832291694,5.022,139.39,139.38,11.55]
[1720832293889,20.0,139.4,139.38,11.55]
[1720832294202,20.0,139.4,139.39,11.55]
[1720832294588,25.0209,139.42,139.39,11.55]
[1720832294788,25.0209,139.42,139.4,11.55]
[1720832295898,20.0,139.42,139.4,11.55]
[1720832296081,5.0209,139.42,139.4,11.55]
[1720832296285,20.0,139.41,139.4,11.55]
[1720832299795,25.0211,139.41,139.4,11.55]
[1720832300703,25.0211,139.41,139.39,11.55]
[1720832301007,5.0217,139.4,139.37,15.9382]
[1720832301195,5.0219,139.39,139.38,11.55]
[1720832301398,5.0216,139.4,139.38,11.55]
[1720832303211,25.0213,139.41,139.39,11.55]
[1720832304587,50.0215,139.4,139.38,11.55]
[1720832304809,5.0215,139.4,139.38,11.55]
[1720832306092,5.0215,139.4,139.39,11.55]
[1720832306293,25.0213,139.41,139.39,11.55]
[1720832306914,24.5213,139.41,139.39,11.55]
[1720832308212,5.0215,139.4,139.39,11.55]
[1720832309013,24.5212,139.41,139.39,11.55]
[1720832309808,24.5212,139.41,139.4,11.55]
[1720832312797,5.0216,139.4,139.39,11.55]
[1720832313898,5.0221,139.39,139.38,11.55]
[1720832314227,5.0221,139.39,139.37,11.55]
[1720832314418,5.0222,139.38,139.34,5.0235]
[1720832314602,5.0227,139.37,139.33,21.3473]
[1720832314793,5.0223,139.38,139.34,5.0234]
[1720832314999,5.0223,139.38,139.36,11.55]
[1720832315715,5.0219,139.39,139.36,11.55]
[1720832316721,5.0219,139.39,139.36,16.5729]
[1720832317023,5.0219,139.39,139.37,11.55]
[1720832319013,50.0216,139.4,139.37,11.55]
[1720832319215,20.0,139.39,139.37,11.55]
[1720832319409,20.0,139.39,139.38,11.55]
[1720832319725,65.0,139.39,139.38,11.55]
[1720832320911,5.021,139.42,139.38,16.5722]
[1720832321224,20.0,139.41,139.39,11.55]
[1720832322121,25.0211,139.41,139.39,11.55]
[1720832322702,5.0215,139.4,139.38,11.55]
[1720832323114,5.0215,139.4,139.37,11.55]
[1720832330535,20.0,139.39,139.37,11.55]
[1720832330735,35.0219,139.39,139.36,11.55]
[1720832330915,50.0222,139.38,139.35,16.5732]
[1720832331119,70.0222,139.38,139.35,16.5732]
[1720832331438,65.0,139.38,139.35,16.5732]
[1720832331638,65.0,139.38,139.36,11.55]
[1720832335436,65.0,139.38,139.35,5.0232]
[1720832335640,65.0,139.38,139.36,11.55]